Cogmind - Beta 16 @@@ ROGUE MODE // 2025.11.18 @ 20:54:20 Player: Jamba27 Result: Destroyed by 4G-SS7(R) with Subdweller Machine Gun Performance ------------- Evolutions (0) 0 Regions Visited (3) 600 Robots Destroyed (27) 135 Value Destroyed (547) 547 Prototype IDs (0) 0 Alien Tech Used (0) 0 Bonus (0) 0 TOTAL SCORE: 1282 Bonus ------- None Cogmind --------- Core Integrity 0/250 Matter 288/300 Energy 99/100 System Corruption 0% Temperature Cool (0) Movement Core (50) Location -10/Subcaves Parts ------- > --- POWER (1) -------- (None) > --- PROPULSION (2) --- (None) > --- UTILITY (2) ------ Signal Interpreter > --- WEAPON (2) ------- (None) > --- INVENTORY (5) ---- Light Ion Engine Sensor Array ECM Suite Hacking Suite Peak State ------------ > --- POWER ------------ Light Ion Engine > --- PROPULSION ------- Aluminum Leg Aluminum Leg > --- UTILITY ---------- Small Storage Unit Signal Interpreter > --- WEAPON ----------- Assault Rifle Assault Rifle > --- INVENTORY -------- Light Ion Engine Aluminum Leg Aluminum Leg Sensor Array ECM Suite Hacking Suite Assault Rifle Mining Laser [Rating: 8] Favorites ----------- Power Light Ion Engine Engine Light Ion Engine Propulsion Aluminum Leg Leg Aluminum Leg Wheel Wheel Utility Signal Interpreter Storage Small Storage Unit Processor Signal Interpreter Weapon Assault Rifle Energy Gun Medium Laser Ballistic Gun Assault Rifle Special Weapon Mining Laser Build | -11 -10 -10 -10 ------- Run | Yrd Mat Min Sub Slots Evolved . | . . . . Power . | . . . . Propulsion . | . . . . Utility . | . . . . Weapon . | . . . . Parts Attached 21 | 8 7 4 2 Power 3 | 1 1 1 . Engine 3 | 1 1 1 . Core . | . . . . Reactor . | . . . . Propulsion 8 | 4 1 2 1 Treads . | . . . . Leg 6 | 2 1 2 1 Wheel 2 | 2 . . . Hover . | . . . . Flight . | . . . . Utility 3 | 1 1 1 . Device . | . . . . Storage 2 | 1 . 1 . Processor 1 | . 1 . . Hackware . | . . . . Protection . | . . . . Artifact . | . . . . Weapon 7 | 2 4 . 1 Energy Gun 1 | 1 . . . Energy Cannon . | . . . . Ballistic Gun 4 | 1 3 . . Ballistic Cannon . | . . . . Launcher . | . . . . Special Weapon 2 | . 1 . 1 Impact Weapon . | . . . . Slashing Weapon . | . . . . Piercing Weapon . | . . . . Special Melee Weapon . | . . . . Unidentified Prototypes . | . . . . Parts Lost 11 | . 1 3 7 Power 3 | . 1 1 1 Propulsion 4 | . . 2 2 Utility . | . . . . Weapon 4 | . . . 4 Highest Loss Streak 5 | . 1 2 5 To Critical Strikes . | . . . . Average Backups 6 | 2 7 7 5 Power . | . . 1 1 Propulsion 1 | 1 2 1 . Utility 2 | . 2 3 3 Weapon 1 | . 2 2 1 Tool/Special . | . . . . Unused Backups 7 | . 3 . 4 Power 1 | . . . 1 Propulsion . | . . . . Utility 6 | . 3 . 3 Weapon . | . . . . Tool/Special . | . . . . Average Slot Usage (%) 94 | . 97 98 80 Engine 13 | . 13 13 11 Leg 26 | . 28 27 20 Storage 13 | . 14 14 11 Processor 12 | . 11 14 14 Ballistic Gun 25 | . 24 28 21 Special Weapon 1 | . 1 . 1 Peak Build Rating 8 | 6 8 8 7 Average Rating 6 | 4 6 7 5 On Entrance 5 | . 6 8 7 Avg Prop Armor Cover (%) . | . . . . Naked Turns . | . . . . Heaviest Build 17 | 12 12 17 17 Greatest Support 20 | 20 20 20 20 Greatest Overweight (x) 1 | . . 1 1 Average Overweight (x) . | . . . . Largest Inventory Capacity 10 | 8 8 10 10 Average Capacity 8 | 7 8 9 9 Most Carried 8 | 6 8 8 7 Average Carried 6 | 2 7 7 5 Final Capacity 10 | 8 8 10 5 Final Carried 8 | 3 8 7 4 Class Distribution -------------------- 100% | Mutant Dominant Class ---------------- Mutant | -10/Materials Mutant | -10/Mines Mutant | -10/Subcaves Resources | -11 -10 -10 -10 ----------- Run | Yrd Mat Min Sub Matter Collected 812 | 210 305 252 45 Remotely . | . . . . Salvage Created 675 | . 403 212 60 Parts 41 | . 21 18 2 Haulers Intercepted 1 | . 1 . . Recyclers Shooed . | . . . . Parts Field Recycled . | . . . . Retrieved Matter . | . . . . Parts Self-Destructed 2 | . . . 2 Prevented . | . . . . Parts Restored . | . . . . Kills | -11 -10 -10 -10 ------- Run | Yrd Mat Min Sub Combat Hostiles Destroyed 24 | . 12 11 1 Guns 24 | . 12 11 1 Classes Destroyed 6 | . 5 . 1 Hauler 1 | . 1 . . Operator 1 | . 1 . . Watcher 1 | . 1 . . Swarmer 15 | . 6 9 . Grunt 8 | . 6 2 . Sentry 1 | . . . 1 Best Kill Streak 3 | . 3 3 1 Combat Bots Only 3 | . 3 3 1 Max Kills in Single Turn 1 | . 1 1 1 Gunslinging . | . . . . Exploded . | . . . . Melee . | . . . . Uniques/NPCs Destroyed . | . . . . Combat | -11 -10 -10 -10 -------- Run | Yrd Mat Min Sub Hostile Shots Fired 149 | . 55 54 40 Missed 35 | . 9 9 17 Hits 114 | . 46 45 23 Projectile 114 | . 46 45 23 Critical Strikes 2 | . . 1 1 Damage Taken 1354 | . 502 404 448 Core 263 | . 87 95 81 Absorbed by Shields . | . . . . Core Remaining (%) 100 | 100 . . . Volleys Fired 85 | . 49 26 10 Largest 2 | . 2 2 2 Hottest 120 | . 120 40 100 Shots Fired 158 | . 91 52 15 Gun 152 | . 88 52 12 Cannon . | . . . . Launcher . | . . . . Special 6 | . 3 . 3 Kinetic 151 | . 87 52 12 Thermal 7 | . 4 . 3 Explosive . | . . . . Electromagnetic . | . . . . Robot Hit Streak 6 | . 5 6 5 Robot Miss Streak 3 | . 3 3 1 Penetration Max . | . . . . Secondary Targets 3 | . 1 2 . Max Gunslinging Chain 1 | . 1 1 . Shots Hit Robots 88 | . 50 29 9 Core Hits 41 | . 24 14 3 Critical Kills . | . . . . Critical Parts Destroyed . | . . . . Critical Strikes . | . . . . Melee Attacks . | . . . . Impact . | . . . . Slashing . | . . . . Piercing . | . . . . Sneak Attacks . | . . . . Combat Hostiles . | . . . . Follow-up Attacks . | . . . . Damage Inflicted 1097 | . 631 358 108 Guns 1095 | . 629 358 108 Cannons . | . . . . Explosions . | . . . . Melee . | . . . . Ramming 2 | . 2 . . Kinetic 1095 | . 629 358 108 Thermal . | . . . . Explosive . | . . . . Electromagnetic . | . . . . Impact . | . . . . Slashing . | . . . . Piercing . | . . . . Highest Corruption . | . . . . Average Corruption . | . . . . Corruption Purged . | . . . . Corruption Blocked . | . . . . Overload Shots . | . . . . Overflow Damage . | . . . . Projectiles . | . . . . Explosions . | . . . . Melee . | . . . . Knockbacks . | . . . . Impact . | . . . . Kinetic . | . . . . Secondary . | . . . . Self-Inflicted Damage . | . . . . Shots . | . . . . Rammed . | . . . . Targets Rammed 1 | . 1 . . Kicked 1 | . 1 . . Crushed . | . . . . Highest Temperature 40 | . 40 21 . Average Temperature 12 | . 14 7 . Received Heat Transfer 321 | . 177 102 42 Siege Activations . | . . . . Martial Activations . | . . . . Shielding Activations . | . . . . Robots Disrupted . | . . . . Combat Hostiles . | . . . . Robots Corrupted . | . . . . Combat Hostiles . | . . . . Parts Fried . | . . . . Impact Corruptions . | . . . . Robots Melted . | . . . . Combat Hostiles . | . . . . Parts Melted . | . . . . Heat Transferred . | . . . . Parts Sabotaged . | . . . . Parts Stolen . | . . . . Parts Stripped . | . . . . Power Chain Reactions . | . . . . Alert | -11 -10 -10 -10 ------- Run | Yrd Mat Min Sub Maximum Alert Level . | . . . . Low Security (%) 100 | 100 100 100 . Level 1 . | . . . . Level 2 . | . . . . Level 3 . | . . . . Level 4 . | . . . . Level 5 . | . . . . High Security . | . . . . Max Security . | . . . . Peak Influence 130 | . 112 130 . Initial 25 | . . 25 . Average 39 | . 31 61 . Influence Increases 663 | . 368 275 20 Destroy 0b10 Robot/C 480 | . 240 220 20 Destroy 0b10 Robot/NC 15 | . 15 . . Destroy Leader 94 | . 54 40 . Successful Hack 12 | . 12 . . Disable Machine 30 | . 30 . . Destroy Structure 2 | . 2 . . Lose Combat Pursuer 30 | . 15 15 . Influence Decreases 663 | . 303 300 60 Entered New Map 61 | . . 40 21 Time Decay 562 | . 293 230 39 Lost Part 40 | . 10 30 . Squads Dispatched 4 | . 4 . . Investigation 2 | . 2 . . Extermination . | . . . . Reinforcement 2 | . 2 . . Assault . | . . . . Garrison . | . . . . Intercept . | . . . . Searches Triggered . | . . . . Construction Impeded . | . . . . Haulers Reinforced . | . . . . Active Scanning Responses . | . . . . Cargo Convoy Interrupts . | . . . . Stealth | -11 -10 -10 -10 --------- Run | Yrd Mat Min Sub Distress Signals 1 | . 1 . . Communications Jammed . | . . . . Distress Signals . | . . . . Times Spotted 36 | . 19 12 5 Peak Tracking Total 3 | . 3 3 3 Tactical Retreats 3 | . 1 1 1 Traps | -11 -10 -10 -10 ------- Run | Yrd Mat Min Sub Traps Triggered 4 | . 4 . . Indirectly . | . . . . Trap Hack Attempts . | . . . . Triggered . | . . . . Disarmed . | . . . . Reprogrammed . | . . . . Reused . | . . . . Traps Extracted . | . . . . Installed . | . . . . Triggered . | . . . . Machines | -11 -10 -10 -10 ---------- Run | Yrd Mat Min Sub Machines Disabled 2 | . 2 . . Max in Single Turn 1 | . 1 . . Machines Repaired . | . . . . Machines Dismantled . | . . . . Machines Sabotaged . | . . . . Overloaded Fab Kills . | . . . . Hacking | -11 -10 -10 -10 --------- Run | Yrd Mat Min Sub Machines Accessed 4 | . 4 . . Terminals 4 | . 4 . . Fabricators . | . . . . Repair Stations . | . . . . Recycling Units . | . . . . Scanalyzers . | . . . . Garrison Access . | . . . . Total Hacks 10 | . 10 . . Successful 4 | . 4 . . Failed 6 | . 6 . . Catastrophic 2 | . 2 . . Database Lockouts . | . . . . Manual 10 | . 10 . . Terminals 10 | . 10 . . Fabricators . | . . . . Repair Stations . | . . . . Recycling Units . | . . . . Scanalyzers . | . . . . Garrison Access . | . . . . Terminal Hacks 2 | . 2 . . Robot Analysis 1 | . 1 . . Terminal Index 1 | . 1 . . Fabricator Hacks . | . . . . Repair Station Hacks . | . . . . Recycling Unit Hacks . | . . . . Scanalyzer . | . . . . Garrison Access Hacks . | . . . . Unauthorized Hacks 2 | . 2 . . Terminals 2 | . 2 . . Assimilate 1 | . 1 . . Botnet 1 | . 1 . . Fabricators . | . . . . Repair Stations . | . . . . Recycling Units . | . . . . Scanalyzers . | . . . . Garrison Access . | . . . . Data Cores Recovered . | . . . . Used . | . . . . Hacking Detections 4 | . 4 . . Full Trace Events . | . . . . Feedback Events . | . . . . Feedback Blocked . | . . . . Robot Schematics Acquired . | . . . . Robots Built . | . . . . Authchips . | . . . . Time . | . . . . Total Robot Build Rating . | . . . . Part Schematics Acquired . | . . . . Parts Built . | . . . . Authchips . | . . . . Time . | . . . . Total Part Build Rating . | . . . . Part Studies Acquired . | . . . . Parts Repaired . | . . . . Time . | . . . . Parts Recycled . | . . . . Recycled Matter . | . . . . Retrieved Matter . | . . . . Retrieved Components . | . . . . Parts Scanalyzed . | . . . . Part Schematics Acquired . | . . . . Parts Damaged . | . . . . Bothacking | -11 -10 -10 -10 ------------ Run | Yrd Mat Min Sub Used RIF Installer . | . . . . Robots Hacked . | . . . . Non-combat . | . . . . Combat . | . . . . Robot Hacks Applied . | . . . . Relay Couplers Released . | . . . . Fabnet Peak Effective % . | . . . . Robots Rewired . | . . . . Allies Hacked . | . . . . Hacks Repelled . | . . . . Allies | -11 -10 -10 -10 -------- Run | Yrd Mat Min Sub Total Allies . | . . . . Largest Group . | . . . . Highest-Rated Group . | . . . . Highest-Rated Ally . | . . . . Total Orders . | . . . . Ally Attacks . | . . . . Total Damage . | . . . . Kills . | . . . . Allies Corrupted . | . . . . Allies Melted . | . . . . Intel | -11 -10 -10 -10 ------- Run | Yrd Mat Min Sub Active Infowar (turns) . | . . . . Robot Analysis Total 1 | . 1 . . Derelict Logs Recovered 2 | . . 2 . Drone Launches . | . . . . Drone Recoveries . | . . . . Exploration | -11 -10 -10 -10 ------------- Run | Yrd Mat Min Sub Turns Passed 1821 | 90 911 496 324 Spaces Moved 1204 | 70 581 302 251 Core 88 | 2 . . 86 Treads . | . . . . Legs 1096 | 48 581 302 165 Wheels 20 | 20 . . . Hover . | . . . . Flight . | . . . . Fastest Speed 50 | 50 120 120 50 Average Speed 115 | 106 120 120 101 Slowest Speed 190 | 120 120 190 190 Overloaded Moves . | . . . . Propulsion Burnouts . | . . . . Robots Hopped . | . . . . Potential Cave-ins . | . . . . Cave-ins Triggered . | . . . . Exploration Rate (%) 37 | 5 75 61 8 Regions Visited 3 Branch Regions 2 Pre-discovered Areas 1 | . . 1 . Known Exits Taken 2 | . 1 1 . Unknown Exits Taken 1 | 1 . . . Scrap Searched . | . . . . Spaces Dug . | . . . . Terrain Destroyed 1 | . 1 . . Melee . | . . . . Projectile 1 | . 1 . . AOE . | . . . . Terrain Rammed . | . . . . Walls Destroyed . | . . . . Machines Disabled . | . . . . Actions | -11 -10 -10 -10 --------- Run | Yrd Mat Min Sub Total 1465 | 83 700 381 301 Wait 121 | . 37 49 35 Move 1201 | 69 580 301 251 Hop . | . . . . Pick Up 21 | 6 15 . . Fast Attach 6 | 3 1 2 . Attach 10 | 3 3 1 3 Detach 1 | . 1 . . Swap 7 | 2 4 1 . Drop 12 | . 9 1 2 Fire 85 | . 49 26 10 Melee . | . . . . Ram . | . . . . Kick 1 | . 1 . . Crush . | . . . . Escape Stasis . | . . . . Rewire . | . . . . Trap . | . . . . Miscellaneous . | . . . . Route ------- -11/Scrapyard -10/Materials (discovered 3 exits: *Mat x2 / *Min) -10/Mines -10/Subcaves History --------- Turn | Location | Event 21 | -11/Scrapyard | Discovered new exit (range 16) 91 | -11/Scrapyard | Entered Materials 230 | -10/Materials | Discovered new exit (range 5) 236 | -10/Materials | Identified exit to Materials 298 | -10/Materials | Discovered new exit (range 8) 303 | -10/Materials | Build established: Mutant 364 | -10/Materials | Discovered exit to Materials (range 12) 995 | -10/Materials | Identified exit to Mines 1002 | -10/Materials | Entered Mines 1007 | -10/Mines | Learned Materials terminal intel 1011 | -10/Mines | Met a Derelict bent on vengeance 1052 | -10/Mines | Core integrity fell below 50% 1139 | -10/Mines | Learned location of Storage (-8) 1495 | -10/Mines | Discovered new exit (range 4) 1496 | -10/Mines | Identified exit to Subcaves 1498 | -10/Mines | Entered Subcaves 1499 | -10/Subcaves | Approached by a straggling Scientist 1732 | -10/Subcaves | A Subdweller sparked back to life 1732 | -10/Subcaves | A Subdweller sparked back to life 1732 | -10/Subcaves | A Subdweller sparked back to life 1737 | -10/Subcaves | Core integrity fell below 20% 1789 | -10/Subcaves | Lost 5 parts (1p1n3w) 1822 | -10/Subcaves | Destroyed by 4G-SS7(R) with Subdweller Machine Gun Last Messages --------------- 2E-VD0(c): "I think it's somewhere northwest of here" 01732_ QF-5YI(R) creaks and sparks as it begins to move. 01732_ Z0-W5K(R) creaks and sparks as it begins to move. 01732_ 4G-SS7(R) creaks and sparks as it begins to move. 01732_ Assault Rifle destroyed. 01736_ Aluminum Leg destroyed. 01743_ Assault Rifle destroyed. 2E-VD0(c): "I think it's somewhere northwest of here" 01755_ Assault Rifle destroyed. 01758_ Dropped Med. Storage Unit. 01758_ Lgt. Ion Engine destroyed. 01759_ Dropped Aluminum Leg. 01763_ Subatomizers dissect the Med. Storage Unit. 01810_ Mining Laser destroyed. Map ----- +----------------------------------------------------+ | ??????????????????????????????????????????????? | | ??????????????????????????????????????????????? | | ??????????????????????????????????????????????? | | ?????????????????????????####?????????????????? | | ????????????????????????## #?????????????????? | | ????????????????###????## #?????????????????? | | ????????????????# ###### ##????????????????? | | ????????????????# ##???????????????? | | ????????????????# #???????????????? | | ????????????????## ##??????????????? | | ?????????????????# #??????????????? | | ?????????????????# ####??????????????? | | ?????????????????# ## ####??????????????? | | ?????????????????## ##### ##?????????????? | | ??????????????????# ##### #?????????????? | | ??????????????????# #?????????????? | | ?????????????????## R ##?????????????? | | ????????????????## ##??????????????? | | ????????????????# R ##???????????????? | | ????????????????## R ##????????????????? | | ?????????????????# #?????????????????? | | ?????????????????# ###?????????????????? | | ?????????????????### #???????????????????? | | ???????????????????# #???????????????????? | | ??????????????????## ## ##??????????????????? | | ??????????????????# ##@ #??????????????????? | | ??????????????????# ## ###?????????????????? | | ??????????????????# ### # #?????????????????? | | ??????????????????# # #?????????????????? | | ??????????????????# ## ##????????????????? | | ??????????????????### ## #????????????????? | | ???????????????????## ### #????????????????? | | ??????????????????## # ##????????????????? | | ?????????????????## # ##????????????????? | | ????????????????## #????????????????? | | ?????????????#?## #????????????????? | | ????????# # # # % #????????????????? | | ?????????# #????????????????? | | ?????????## #????????????????? | | ??????????## ##### ##???????????????? | | ???????????#?##??# ## #???????????????? | | ??????????# ## #####???????????????? | | ??????????? ?# #???????????????????? | | ????????????## #?# #???????????????????? | | ????????##?## #??# ###???????????????????? | | ???????## ## ?### ##?????????????????????? | | ???????# #?# ##?????????????????????? | | ????????# #### ##????????????????????? | | ?????????? ### = #????????????????????? | | ??????????## ###! ##???????????????????? | +----------------------------------------------------+ Best States ------------- Heat Dissipation 25 Energy Generation 10 Energy Capacity 125 Matter Stores 300 Matter Capacity 300 Sight Range 16 Terrain Scan Density 10 Evasion (%) 55 Item Schematics ----------------- None Robot Schematics ------------------ None Fabricated ------------ Nothing Repaired ---------- Nothing Studied --------- None Alien Tech Used ----------------- None Achievements -------------- None Challenges ------------ None Game ------ Seed ResetImprovedDiverter Manual? 0 Play Time 00:19:26 Cumulative 30.8 hours Start 2025.11.18 @ 17:31:37 End 2025.11.18 @ 20:54:20 Sessions 3 Manual Loads 0 Difficulty Rogue Special Mode None Game No. 29 Rogue 29 Adventurer 0 Explorer 0 Win Type - Total 0 Types 0/0/0/0/0/0/0/0/0/0 Lore% 19 Gallery% 27 Achievement% 19 Wizard Run 0 Options --------- Layout 1 ASCII 0 Keyboard 0 Movement Mouse Keybinds 0 Fullscreen 1 Font 24/Smallcaps Map View 50x35 Zoom Use 0% Tactical HUD 1 Map Filters NONE Filters NONE Steam 1 RUN: 7aeca7da-4194-4c24-9908-5cd55d5ed21d